fUST/lending_fUST_20251010
["ID","MTS","AMOUNT","RATE_DAILY","PERIOD"]
[390646332,1760111443857,-151.0,0.00023,7]
[390646334,1760111443866,-345.478907,0.00023,7]
[390646336,1760111443876,-151.0,0.00023,7]
[390646338,1760111443885,-151.0,0.00023,7]
[390646340,1760111443895,-151.0,0.00023,7]
[390646342,1760111443904,-151.0,0.00023,7]
[390646344,1760111443913,-35714.32,0.00023,3]
[390646346,1760111443923,-151.0,0.00023,7]
[390646348,1760111443932,-151.0,0.00023,7]
[390646350,1760111443941,-211.222275,0.00023,7]
[390646352,1760111443951,-211.222275,0.00023,7]
[390646354,1760111443960,-211.222275,0.00023,7]
[390646356,1760111443970,-1041.66666667,0.00023,3]
[390646358,1760111443979,-211.222275,0.00023,7]
[390646360,1760111443987,-160.0,0.00023,2]
[390646362,1760111443997,-151.0,0.00023,7]
[390646364,1760111444005,-151.737359,0.00023,2]
[390646366,1760111444015,-404.55862768,0.00023004,2]
[390646368,1760111444023,-1596.76487061,0.00023004,2]
[390646370,1760111444033,-5000.0,0.00023004,2]
[390646372,1760111444042,-261.7267616,0.00023014,2]
[390646374,1760111444051,-800.0,0.00023032,2]
[390646376,1760111444061,-19703.71,0.00023037,2]
[390646378,1760111444071,-500.0,0.00023044,2]
[390646380,1760111444082,-500.0,0.00023051,2]
[390646382,1760111444091,-500.0,0.00023083,2]
[390646384,1760111444101,-173.01031724,0.00023096,2]
[390646386,1760111444110,-200.0,0.000231,2]
[390646388,1760111444119,-572.04403509,0.000231,3]
[390646390,1760111444128,-860.0,0.00023141,2]
[390646392,1760111444137,-177.60445815,0.00023145,2]
[390646394,1760111444146,-500.0,0.00023145,2]
[390646396,1760111444155,-500.0,0.00023145,2]
[390646398,1760111444164,-500.0,0.00023145,2]
[390646400,1760111444174,-500.0,0.00023145,2]
[390646402,1760111444185,-500.0,0.00023178,2]
[390646403,1760111444197,-500.21361187,0.00023178,2]
[390646405,1760111444206,-500.0,0.00023178,2]
[390646407,1760111444216,-6636.11151213,0.000232,2]
[390646410,1760111444226,-568.08624734,0.000232,2]
[390646412,1760111444236,-35714.28,0.000232,3]
[390646414,1760111444246,-173.01031724,0.00023205,2]
[390646416,1760111444256,-193.53599063,0.00023279,2]
[390646418,1760111444269,-500.0,0.00023287,2]
[390646419,1760111444279,-13523.84457862,0.000233,7]
[390646421,1760111444289,-1041.66666667,0.000233,3]
[390646423,1760111444298,-160.0,0.000233,3]
[390646425,1760111444308,-160.0,0.000233,3]
[390646427,1760111444317,-298.03512572,0.000233,3]
[390646429,1760111444328,-173.01031724,0.00023315,2]
[390646431,1760111444338,-500.0,0.00023327,2]
[390646433,1760111444347,-7562.0,0.00023346,2]
[390646435,1760111444357,-500.0,0.00023353,2]
[390646437,1760111444367,-500.0,0.00023364,2]
[390646439,1760111444377,-173.01031724,0.00023425,2]
[390646442,1760111444386,-1000.0,0.00023428,2]
[390646443,1760111444396,-264.2141144,0.00023428,2]
[390646445,1760111444406,-500.0,0.00023456,2]
[390646447,1760111444415,-500.0,0.00023476,2]
[390646449,1760111444425,-500.0,0.00023476,2]
[390646451,1760111444434,-500.0,0.00023476,2]
[390646453,1760111444444,-500.0,0.00023476,2]
[390646455,1760111444453,-500.0,0.00023476,2]
[390646457,1760111444463,-500.0,0.00023476,2]
[390646459,1760111444472,-500.0,0.00023476,2]
[390646461,1760111444481,-500.0,0.00023476,2]
[390646463,1760111444491,-500.0,0.00023476,2]
[390646465,1760111444500,-500.0,0.00023476,2]
[390646468,1760111444511,-162.0,0.00023479,10]
[390646470,1760111444521,-99949.6622757,0.00023487,2]
[390646471,1760111444531,-234.86366,0.00023487,7]
[390646474,1760111444540,-151.0,0.00023487,7]
[390646476,1760111444549,-151.0,0.00023487,7]
[390646478,1760111444559,-151.386704,0.00023487,7]
[390646480,1760111444568,-288.620411,0.00023487,7]
[390646482,1760111444579,-151.0,0.00023487,7]
[390646483,1760111444588,-188.41805,0.00023487,7]
[390646485,1760111444597,-151.0,0.00023487,7]
[390646487,1760111444607,-188.41805,0.00023487,7]
[390646489,1760111444616,-188.41805,0.00023487,7]
[390646491,1760111444624,-188.41805,0.00023487,7]
[390646493,1760111444634,-151.0,0.00023487,7]
[390646496,1760111444643,-151.0,0.00023487,7]
[390646498,1760111444653,-151.0,0.00023487,7]
[390646499,1760111444662,-151.0,0.00023487,7]
[390646501,1760111444671,-161.91754,0.00023487,7]
[390646503,1760111444680,-151.0,0.00023487,7]
[390646506,1760111444689,-151.0,0.00023487,7]
[390646508,1760111444699,-151.0,0.00023487,7]
[390646510,1760111444708,-151.0,0.00023487,7]
[390646511,1760111444717,-151.0,0.00023487,7]
[390646514,1760111444726,-255.287041,0.00023487,7]
[390646515,1760111444735,-255.287041,0.00023487,7]
[390646517,1760111444745,-255.287041,0.00023487,7]
[390646520,1760111444755,-255.287041,0.00023487,7]
[390646521,1760111444765,-152.031456,0.00023487,7]
[390646523,1760111444774,-151.0,0.00023487,7]
[390646525,1760111444784,-151.0,0.00023487,7]
[390646527,1760111444793,-535.230018,0.00023487,7]
[390646529,1760111444803,-535.230018,0.00023487,7]
[390646532,1760111444812,-151.0,0.00023487,7]
[390646533,1760111444822,-535.230018,0.00023487,7]
[390646535,1760111444833,-535.230018,0.00023487,7]
[390646537,1760111444842,-2750.165056,0.00023487,7]
[390646540,1760111444851,-2750.165056,0.00023487,7]
[390646541,1760111444861,-2750.165056,0.00023487,7]
[390646544,1760111444871,-2750.165056,0.00023487,7]
[390646546,1760111444881,-151.0,0.00023487,7]
[390646547,1760111444890,-151.0,0.00023487,7]
[390646549,1760111444899,-151.0,0.00023487,7]
[390646552,1760111444909,-151.0,0.00023487,7]
[390646553,1760111444918,-151.0,0.00023487,7]
[390646556,1760111444927,-185.618188,0.00023487,7]
[390646558,1760111444936,-151.0,0.00023487,7]
[390646559,1760111444945,-151.0,0.00023487,7]
[390646562,1760111444954,-345.478907,0.00023487,7]
[390646563,1760111444963,-345.478907,0.00023487,7]
[390646565,1760111444973,-151.0,0.00023487,7]
[390646567,1760111444982,-345.478907,0.00023487,7]
[390646570,1760111444991,-257.4962,0.00023487,7]
[390646572,1760111445001,-345.478907,0.00023487,7]
[390646574,1760111445011,-151.0,0.00023487,7]
[390646575,1760111445021,-151.0,0.00023487,7]
[390646578,1760111445030,-151.0,0.00023487,7]
[390646579,1760111445039,-151.0,0.00023487,7]
[390646582,1760111445048,-154.141836,0.00023487,7]
[390646583,1760111445057,-154.856397,0.00023487,7]
[390646586,1760111445067,-211.222275,0.00023487,7]
[390646588,1760111445079,-211.222275,0.00023487,7]
[390646590,1760111445088,-211.222275,0.00023487,7]
[390646591,1760111445098,-211.222275,0.00023487,7]
[390646594,1760111445107,-151.0,0.00023487,7]
[390646596,1760111445116,-1000.0,0.000235,2]
[390646598,1760111445125,-6636.11151213,0.000235,2]
[390646599,1760111445135,-1000.0,0.000235,2]
[390646601,1760111445145,-160.0,0.000235,3]
[390646603,1760111445154,-160.0,0.000235,5]
[390646606,1760111445163,-200.0,0.0002351,2]
[390646608,1760111445173,-182.110453,0.00023513,7]
[390646609,1760111445184,-151.0,0.00023513,7]
[390646611,1760111445195,-151.0,0.00023513,7]
[390646614,1760111445205,-151.0,0.00023513,7]
[390646616,1760111445215,-152.984232,0.00023513,7]
[390646617,1760111445225,-201.340576,0.00023513,7]
[390646619,1760111445234,-207.763216,0.00023513,7]
[390646621,1760111445244,-207.763216,0.00023513,7]
[390646623,1760111445253,-207.763216,0.00023513,7]
[390646625,1760111445263,-151.0,0.00023513,7]
[390646627,1760111445273,-207.763216,0.00023513,7]
[390646629,1760111445283,-151.0,0.00023513,7]
[390646631,1760111445292,-500.0,0.00023513,2]
[390646633,1760111445301,-500.0,0.00023513,2]
[390646635,1760111445310,-1000.0,0.00023521,2]
[390646637,1760111445320,-1000.0,0.00023521,2]
[390646639,1760111445331,-1000.0,0.00023521,2]
[390646641,1760111445340,-1000.0,0.00023521,2]
[390646643,1760111445350,-1004.54580685,0.00023521,2]
[390646645,1760111445359,-1000.0,0.00023521,2]
[390646647,1760111445369,-1000.0,0.00023521,2]
[390646649,1760111445378,-1000.0,0.00023521,2]
[390646651,1760111445388,-1000.0,0.00023521,2]
[390646653,1760111445397,-1000.0,0.00023521,2]
[390646656,1760111445408,-1000.0,0.00023521,2]
[390646658,1760111445417,-1000.0,0.00023521,2]
[390646660,1760111445429,-1004.631657,0.00023521,2]
[390646662,1760111445439,-1000.0,0.00023521,2]
[390646664,1760111445448,-529.45191971,0.00023521,2]
[390646666,1760111445458,-682.97257709,0.00023521,2]
[390646668,1760111445467,-1000.0,0.00023521,2]
[390646670,1760111445477,-1000.0,0.00023521,2]
[390646672,1760111445486,-1000.0,0.00023521,2]
[390646674,1760111445496,-1088.0098805,0.00023521,2]
[390646676,1760111445505,-1000.0,0.00023521,2]
[390646678,1760111445514,-1000.0,0.00023521,2]
[390646680,1760111445522,-1000.0,0.00023521,2]
[390646682,1760111445532,-1000.0,0.00023521,2]
[390646684,1760111445541,-1000.0,0.00023521,2]
[390646686,1760111445550,-577.1107497,0.00023521,2]
[390646688,1760111445559,-173.01031724,0.00023534,2]
[390646690,1760111445568,-5500.0,0.00023552,2]
[390646692,1760111445582,-500.0,0.00023588,2]
[390646694,1760111445591,-500.0,0.00023591,2]
[390646696,1760111445600,-1000.0,0.00023631,2]
[390646698,1760111445609,-173.01031724,0.00023644,2]
[390646700,1760111445618,-218.128692,0.00023663,2]
[390646702,1760111445627,-800.0,0.00023684,2]
[390646704,1760111445636,-960.0,0.00023689,2]
[390646706,1760111445646,-1355.3500519,0.00023691,15]
[390646708,1760111445656,-500.0,0.00023691,2]
[390646710,1760111445665,-500.0,0.00023691,2]
[390646712,1760111445674,-1000.0,0.00023693,2]
[390646714,1760111445683,-1000.0,0.00023693,2]
[390646716,1760111445693,-1000.0,0.00023693,2]
[390646718,1760111445702,-1000.0,0.00023693,2]
[390646720,1760111445712,-3692.54990417,0.000237,14]
[390646722,1760111445722,-1041.66666667,0.000237,7]
[390646724,1760111445731,-201.0,0.000237,7]
[390646726,1760111445740,-6636.11151213,0.000237,2]
[390646728,1760111445749,-160.0,0.000237,7]
[390646730,1760111445759,-298.03512572,0.000237,7]
[390646732,1760111445768,-1000.0,0.00023726,2]
[390646734,1760111445777,-1000.0,0.00023726,2]
[390646736,1760111445787,-173.01031724,0.00023753,2]
[390646738,1760111445797,-1981.038788,0.0002378,5]
[390646740,1760111445807,-99435.3038233,0.000238,2]
[390646742,1760111445817,-1041.66666667,0.000238,3]
[390646744,1760111445828,-234.32063665,0.000238,3]
[390646746,1760111445838,-1000.0,0.000238,5]
[390646748,1760111445847,-160.0,0.000238,3]
[390646750,1760111445856,-160.0,0.000238,3]
[390646752,1760111445866,-151.0,0.000238,7]
[390646754,1760111445875,-151.0,0.000238,7]
[390646756,1760111445884,-151.0,0.000238,7]
[390646758,1760111445894,-151.0,0.000238,7]
[390646760,1760111445903,-298.03512572,0.000238,3]
[390646762,1760111445913,-255.287041,0.000238,7]
[390646764,1760111445922,-255.287041,0.000238,7]
[390646766,1760111445931,-255.287041,0.000238,7]
[390646768,1760111445941,-255.287041,0.000238,7]
[390646770,1760111445950,-151.0,0.000238,7]
[390646772,1760111445959,-598.51943916,0.000238,2]
[390646774,1760111445968,-1000.0,0.000238,2]
[390646776,1760111445977,-1000.0,0.000238,2]
[390646778,1760111445986,-1000.0,0.000238,2]
[390646780,1760111445996,-202.761572,0.000238,2]
[390646782,1760111446005,-535.230018,0.000238,7]
[390646784,1760111446014,-535.230018,0.000238,7]
[390646786,1760111446023,-156.091992,0.000238,7]
[390646788,1760111446033,-535.230018,0.000238,7]
[390646790,1760111446043,-535.230018,0.000238,7]
[390646792,1760111446053,-2750.165056,0.000238,7]
[390646794,1760111446063,-2750.165056,0.000238,7]
[390646796,1760111446072,-2750.165056,0.000238,7]
[390646798,1760111446086,-151.0,0.000238,7]
[390646801,1760111446096,-2750.165056,0.000238,7]
[390646803,1760111446105,-151.0,0.000238,7]
[390646804,1760111446114,-151.0,0.000238,7]
[390646807,1760111446124,-151.0,0.000238,7]
[390646810,1760111446133,-151.0,0.000238,7]
[390646814,1760111446142,-345.478907,0.000238,7]
[390646818,1760111446152,-151.0,0.000238,7]
[390646820,1760111446161,-345.478907,0.000238,7]
[390646823,1760111446170,-151.0,0.000238,7]
[390646824,1760111446182,-345.478907,0.000238,7]
[390646826,1760111446192,-345.478907,0.000238,7]
[390646831,1760111446202,-151.0,0.000238,7]
[390646834,1760111446211,-244.097566,0.000238,7]
[390646835,1760111446223,-151.0,0.000238,7]
[390646836,1760111446233,-151.0,0.000238,7]
[390646838,1760111446243,-211.222275,0.000238,7]
[390646840,1760111446252,-211.222275,0.000238,7]
[390646842,1760111446264,-211.222275,0.000238,7]
[390646843,1760111446273,-211.222275,0.000238,7]
[390646844,1760111446283,-151.0,0.000238,7]
[390646845,1760111446292,-1000.0,0.0002382,5]
[390646846,1760111446301,-1000.0,0.0002384,5]
[390646847,1760111446311,-626.86087353,0.00023858,2]
[390646850,1760111446322,-151.0,0.0002386,7]
[390646851,1760111446336,-1000.0,0.0002386,5]
[390646853,1760111446345,-188.41805,0.0002386,7]
[390646857,1760111446355,-188.41805,0.0002386,7]
[390646860,1760111446366,-188.41805,0.0002386,7]
[390646864,1760111446376,-188.41805,0.0002386,7]
[390646866,1760111446385,-1000.0,0.0002388,5]
[390646869,1760111446395,-500.0,0.00023889,2]
[390646872,1760111446404,-1000.0,0.00023893,20]
[390646875,1760111446414,-244.0,0.00023893,20]
[390646878,1760111446424,-400.0,0.000239,3]
[390646881,1760111446435,-6636.11151213,0.000239,2]
[390646884,1760111446444,-151.0,0.000239,7]
[390646888,1760111446454,-151.0,0.000239,7]
[390646892,1760111446464,-151.0,0.000239,7]
[390646896,1760111446475,-207.763216,0.000239,7]
[390646901,1760111446485,-207.763216,0.000239,7]
[390646904,1760111446494,-207.763216,0.000239,7]
[390646909,1760111446505,-151.0,0.000239,7]
[390646946,1760111446515,-207.763216,0.000239,7]
[390646951,1760111446670,-151.0,0.000239,7]
[390646954,1760111446680,-1000.0,0.000239,5]
[390646957,1760111446689,-1000.0,0.0002392,5]
[390646960,1760111446699,-22987.66,0.00023923,2]
[390646963,1760111446709,-391.8516513,0.0002393,2]
[390646966,1760111446719,-391.8516513,0.0002393,2]
[390646969,1760111446728,-391.8516513,0.0002393,2]
[390646972,1760111446738,-391.8516513,0.0002393,2]
[390646975,1760111446748,-391.8516513,0.0002393,2]
[390646978,1760111446758,-391.8516513,0.0002393,2]
[390646981,1760111446768,-391.8516513,0.0002393,2]
[390646984,1760111446778,-391.8516513,0.0002393,2]
[390646987,1760111446788,-391.8516513,0.0002393,2]
[390646990,1760111446797,-391.8516513,0.0002393,2]
[390646993,1760111446806,-391.8516513,0.0002393,2]
[390646996,1760111446815,-391.8516513,0.0002393,2]
[390646998,1760111446827,-391.8516513,0.0002393,2]
[390647002,1760111446838,-391.8516513,0.0002393,2]
[390647005,1760111446848,-500.0,0.00023933,2]
[390647007,1760111446857,-1000.0,0.0002394,5]
[390647009,1760111446866,-151.25801289,0.00023952,2]
[390647012,1760111446876,-1000.0,0.0002396,5]
[390647014,1760111446886,-1500.0,0.00023976,2]
[390647017,1760111446895,-1000.0,0.0002398,5]
[390647020,1760111446904,-7928.19592343,0.00023991,2]
[390647023,1760111446914,-1000.0,0.00023999,2]
[390647026,1760111446923,-163.0,0.00024,7]
[390647029,1760111446932,-900.0,0.00024,2]
[390647032,1760111446942,-3377.45291651,0.00024,14]
[390647035,1760111446951,-459.75610832,0.00024,2]
[390647038,1760111446960,-271.50833201,0.00024,7]
[390647041,1760111446969,-160.0,0.00024,7]
[390647044,1760111446978,-234.25206901,0.00024,7]
[390647047,1760111446988,-662.39,0.00024,5]
[390647050,1760111446996,-1714.04955816,0.00024,2]
[390647053,1760111447006,-163.6203549,0.00024,2]
[390647056,1760111447015,-2000.0,0.00024,2]
[390647059,1760111447024,-6222.67309421,0.00024,2]
[390647062,1760111447033,-3000.0,0.00024,2]
[390647065,1760111447042,-3000.0,0.00024,2]
[390647068,1760111447052,-152.0,0.00024,3]
[390647072,1760111447062,-152.0,0.00024,3]
[390647076,1760111447071,-152.0,0.00024,3]
[390647080,1760111447083,-152.0,0.00024,3]
[390647083,1760111447092,-152.0,0.00024,3]
[390647087,1760111447102,-152.0,0.00024,3]
[390647092,1760111447111,-152.0,0.00024,3]
[390647096,1760111447120,-152.0,0.00024,3]
[390647100,1760111447130,-152.0,0.00024,3]
[390647102,1760111447140,-152.0,0.00024,3]
[390647106,1760111447149,-152.0,0.00024,3]
[390647109,1760111447158,-152.0,0.00024,3]
[390647112,1760111447167,-152.0,0.00024,3]
[390647115,1760111447177,-152.0,0.00024,3]
[390647117,1760111447191,-152.0,0.00024,3]
[390647119,1760111447200,-152.0,0.00024,3]
[390647121,1760111447210,-152.0,0.00024,3]
[390647123,1760111447219,-152.0,0.00024,3]
[390647125,1760111447230,-152.0,0.00024,3]
[390647127,1760111447241,-152.0,0.00024,3]
[390647129,1760111447251,-152.0,0.00024,3]
[390647131,1760111447262,-152.0,0.00024,3]
[390647133,1760111447271,-152.0,0.00024,3]
[390647135,1760111447281,-152.0,0.00024,3]
[390647137,1760111447291,-152.0,0.00024,3]
[390647139,1760111447300,-152.0,0.00024,3]
[390647141,1760111447310,-329.0,0.00024,3]
[390647143,1760111447319,-152.0,0.00024,3]
[390647145,1760111447331,-329.0,0.00024,3]
[390647147,1760111447342,-329.0,0.00024,3]
[390647149,1760111447351,-329.0,0.00024,3]
[390647151,1760111447360,-329.0,0.00024,3]
[390647153,1760111447370,-329.0,0.00024,3]
[390647155,1760111447380,-329.0,0.00024,3]
[390647157,1760111447389,-329.0,0.00024,3]
[390647159,1760111447399,-161.52172655,0.00024,3]
[390647161,1760111447408,-830.545,0.00024,2]
[390647163,1760111447418,-3090.323,0.00024,2]
[390647165,1760111447427,-500.0,0.00024,9]
[390647167,1760111447436,-152.0,0.00024,3]
[390647169,1760111447446,-152.0,0.00024,3]
[390647171,1760111447455,-153.8672455,0.00024,3]
[390647173,1760111447465,-152.0,0.00024,3]
[390647175,1760111447475,-152.0,0.00024,3]
[390647177,1760111447485,-152.0,0.00024,3]
[390647179,1760111447494,-152.0,0.00024,3]
[390647181,1760111447504,-152.0,0.00024,3]
[390647183,1760111447513,-248.77403672,0.00024,3]
[390647185,1760111447526,-152.0,0.00024,3]
[390647187,1760111447536,-153.36774641,0.00024,3]
[390647189,1760111447547,-152.0,0.00024,3]
[390647191,1760111447556,-152.0,0.00024,3]
[390647193,1760111447566,-152.0,0.00024,3]
[390647195,1760111447578,-152.0,0.00024,3]
[390647197,1760111447587,-152.0,0.00024,3]
[390647199,1760111447597,-152.0,0.00024,3]
[390647201,1760111447606,-1000.0,0.00024,5]
[390647203,1760111447616,-331.72045481,0.00024,3]
[390647205,1760111447626,-330.54059359,0.00024,3]
[390647207,1760111447635,-162.32955236,0.00024,3]
[390647209,1760111447644,-1000.0,0.00024,2]
[390647211,1760111447653,-355.70795066,0.00024,9]
[390647213,1760111447663,-250.0,0.00024,10]
[390647215,1760111447673,-150.0,0.00024,2]
[390647217,1760111447683,-653.0,0.00024,2]
[390647219,1760111447692,-341.8456,0.00024,2]
[390647221,1760111447701,-341.8456,0.00024,2]
[390647223,1760111447711,-163.46822302,0.00024,3]
[390647225,1760111447720,-162.0,0.00024,3]
[390647227,1760111447730,-162.45379901,0.00024,3]
[390647229,1760111447739,-162.72748047,0.00024,3]
[390647231,1760111447748,-500.0,0.00024003,2]
[390647233,1760111447758,-3000.0,0.0002401,2]
[390647235,1760111447767,-3000.0,0.0002401,2]
[390647237,1760111447777,-3000.0,0.0002401,30]
[390647239,1760111447786,-3765.483411,0.0002402,2]
[390647241,1760111447795,-3000.0,0.0002402,2]
[390647244,1760111447805,-3000.0,0.0002402,30]
[390647246,1760111447815,-1000.0,0.00024024,2]
[390647247,1760111447827,-182.92838623,0.00024024,2]
[390647250,1760111447837,-1000.0,0.00024024,2]
[390647252,1760111447846,-1000.0,0.00024024,2]
[390647254,1760111447855,-1000.0,0.00024024,2]
[390647256,1760111447866,-1000.0,0.00024024,2]
[390647257,1760111447875,-1000.0,0.00024024,2]
[390647260,1760111447884,-1000.0,0.00024024,2]
[390647261,1760111447894,-1000.0,0.00024024,2]
[390647264,1760111447904,-3000.0,0.0002403,2]
[390647266,1760111447913,-3000.0,0.0002403,30]
[390647268,1760111447923,-5000.0,0.00024031,2]
[390647270,1760111447932,-5000.0,0.00024031,2]
[390647272,1760111447941,-3000.0,0.0002404,2]
[390647274,1760111447951,-3000.0,0.0002404,30]
[390647276,1760111447961,-3000.0,0.0002405,2]
[390647278,1760111447970,-3000.0,0.0002405,30]
[390647280,1760111447980,-3000.0,0.0002406,2]
[390647282,1760111447989,-3000.0,0.0002406,30]
[390647284,1760111447999,-1110.37696371,0.00024061,2]
[390647285,1760111448008,-1500.0,0.00024068,2]
[390647288,1760111448018,-1569.53903122,0.00024068,2]
[390647290,1760111448027,-1500.0,0.00024068,2]
[390647291,1760111448037,-1500.0,0.00024068,2]
[390647294,1760111448046,-1500.0,0.00024068,2]
[390647296,1760111448057,-501.80842895,0.00024068,2]
[390647298,1760111448067,-1019.4346032,0.00024068,2]
[390647300,1760111448081,-1500.0,0.00024068,2]
[390647302,1760111448091,-1500.0,0.00024068,2]
[390647304,1760111448100,-1500.0,0.00024068,2]
[390647306,1760111448110,-1500.0,0.00024068,2]
[390647308,1760111448119,-1522.68705568,0.00024068,2]
[390647310,1760111448129,-1500.0,0.00024068,2]
[390647312,1760111448139,-413.61438681,0.00024068,2]
[390647314,1760111448149,-1086.63355262,0.00024068,2]
[390647316,1760111448159,-1500.0,0.00024068,2]
[390647318,1760111448169,-1500.0,0.00024068,2]
[390647320,1760111448179,-1500.0,0.00024068,2]
[390647322,1760111448193,-1500.0,0.00024068,2]
[390647324,1760111448202,-1500.0,0.00024068,2]
[390647326,1760111448212,-3000.0,0.0002407,2]
[390647328,1760111448222,-3000.0,0.0002407,30]
[390647330,1760111448232,-3000.0,0.0002408,2]
[390647332,1760111448242,-3000.0,0.0002408,30]
[390647334,1760111448251,-255.287041,0.0002408,7]
[390647336,1760111448262,-255.287041,0.0002408,7]
[390647338,1760111448271,-255.287041,0.0002408,7]
[390647340,1760111448282,-255.287041,0.0002408,7]
[390647342,1760111448291,-151.0,0.0002408,7]
[390647344,1760111448301,-535.230018,0.0002408,7]
[390647346,1760111448311,-535.230018,0.0002408,7]
[390647348,1760111448321,-535.230018,0.0002408,7]
[390647350,1760111448332,-535.230018,0.0002408,7]
[390647352,1760111448342,-2750.165056,0.0002408,7]
[390647354,1760111448352,-2750.165056,0.0002408,7]
[390647356,1760111448361,-2750.165056,0.0002408,7]
[390647358,1760111448371,-170.271576,0.0002408,7]
[390647360,1760111448381,-2750.165056,0.0002408,7]
[390647362,1760111448390,-151.0,0.0002408,7]
[390647364,1760111448400,-244.37532,0.0002408,7]
[390647366,1760111448410,-151.0,0.0002408,7]
[390647368,1760111448419,-151.0,0.0002408,7]
[390647370,1760111448428,-345.478907,0.0002408,7]
[390647373,1760111448439,-151.0,0.0002408,7]
[390647375,1760111448449,-345.478907,0.0002408,7]
[390647377,1760111448458,-151.0,0.0002408,7]
[390647379,1760111448468,-345.478907,0.0002408,7]
[390647381,1760111448478,-345.478907,0.0002408,7]
[390647383,1760111448488,-151.0,0.0002408,7]
[390647385,1760111448498,-151.0,0.0002408,7]
[390647387,1760111448508,-151.0,0.0002408,7]
[390647389,1760111448518,-211.222275,0.0002408,7]
[390647391,1760111448528,-211.222275,0.0002408,7]
[390647393,1760111448538,-211.222275,0.0002408,7]
[390647394,1760111448547,-211.222275,0.0002408,7]
[390647395,1760111448556,-151.0,0.0002408,7]
[390647396,1760111448566,-151.0,0.00024087,7]
[390647397,1760111448578,-151.0,0.00024087,7]
[390647398,1760111448587,-3000.0,0.0002409,2]
[390647399,1760111448597,-3000.0,0.0002409,30]
[390647400,1760111448606,-151.0,0.00024098,7]
[390647401,1760111448615,-188.41805,0.00024098,7]
[390647402,1760111448624,-188.41805,0.00024098,7]
[390647403,1760111448634,-188.41805,0.00024098,7]
[390647404,1760111448643,-188.41805,0.00024098,7]
[390647405,1760111448652,-151.0,0.00024098,7]
[390647406,1760111448661,-151.898984,0.00024098,7]
[390647407,1760111448671,-200.0,0.000241,2]
[390647408,1760111448680,-3000.0,0.000241,2]
[390647409,1760111448689,-3000.0,0.000241,30]
[390647410,1760111448698,-250.0,0.000241,10]
[390647411,1760111448707,-6000.0,0.000241,2]
[390647412,1760111448716,-3000.0,0.0002411,2]
[390647413,1760111448725,-3000.0,0.0002411,30]
[390647414,1760111448734,-151.0,0.0002411,7]
[390647415,1760111448743,-151.0,0.0002411,7]
[390647416,1760111448752,-151.0,0.0002411,7]
[390647417,1760111448761,-207.763216,0.0002411,7]
[390647418,1760111448770,-207.763216,0.0002411,7]
[390647419,1760111448779,-207.763216,0.0002411,7]
[390647420,1760111448789,-151.0,0.0002411,7]
[390647421,1760111448798,-207.763216,0.0002411,7]
[390647422,1760111448807,-300.47502,0.0002411,7]
[390647423,1760111448815,-500.0,0.00024111,2]
[390647424,1760111448825,-3000.0,0.0002412,2]